[Event "January 2 Late 2024"]
[Site "https://www.chess.com"]
[Date "2024.01.02"]
[Round "7"]
[White "Gulamirian, Korun"]
[Black "HouseOfDurin"]
[Result "0-1"]
[Board "183"]
[TimeControl "180+1"]
[WhiteFideId "4144899"]
[WhiteElo "1601"]
[BlackElo "2232"]
[WhiteTeam "RUS"]
[WhiteClock "0:00:31"]
[BlackClock "0:00:25"]

1. e4 {[%clk 0:02:58]}  c5 {[%clk 0:03:00]} 2. Nf3 {[%clk 0:02:57]}  Nc6 {[%clk 0:03:00]} 3. d4 {[%clk 0:02:57]}  cxd4 {[%clk 0:03:01]} 4. Nxd4 {[%clk 0:02:57]}  g6 {[%clk 0:03:02]} 5. Be3 {[%clk 0:02:56]}  Bg7 {[%clk 0:03:02]} 6. Nc3 {[%clk 0:02:55]}  d6 {[%clk 0:03:01]} 7. f3 {[%clk 0:02:47]}  Nf6 {[%clk 0:03:00]} 8. Qd2 {[%clk 0:02:46]}  h5 {[%clk 0:03:00]} 9. O-O-O {[%clk 0:02:46]}  Qa5 {[%clk 0:02:59]} 10. Kb1 {[%clk 0:02:44]}  Nxd4 {[%clk 0:02:53]} 11. Bxd4 {[%clk 0:02:44]}  Bd7 {[%clk 0:02:53]} 12. Bc4 {[%clk 0:02:28]}  b6 {[%clk 0:02:50]} 13. Bb3 {[%clk 0:02:23]}  O-O {[%clk 0:02:49]} 14. Nd5 {[%clk 0:02:18]}  Nxd5 {[%clk 0:02:47]} 15. Bxg7 {[%clk 0:02:18]}  Qxd2 {[%clk 0:02:44]} 16. Rxd2 {[%clk 0:02:17]}  Kxg7 {[%clk 0:02:43]} 17. Bxd5 {[%clk 0:02:15]}  Rac8 {[%clk 0:02:42]} 18. h3 {[%clk 0:02:03]}  Bc6 {[%clk 0:02:34]} 19. Bb3 {[%clk 0:02:02]}  Rc7 {[%clk 0:02:24]} 20. g4 {[%clk 0:02:02]}  h4 {[%clk 0:02:21]} 21. g5 {[%clk 0:02:01]}  Bd7 {[%clk 0:02:16]} 22. f4 {[%clk 0:01:58]}  Be6 {[%clk 0:02:13]} 23. Rg1 {[%clk 0:01:49]}  Bxh3 {[%clk 0:02:05]} 24. Rh1 {[%clk 0:01:41]}  Be6 {[%clk 0:02:05]} 25. Rxh4 {[%clk 0:01:40]}  Rh8 {[%clk 0:02:05]} 26. Rdh2 {[%clk 0:01:39]}  Rxh4 {[%clk 0:02:04]} 27. Rxh4 {[%clk 0:01:39]}  Bxb3 {[%clk 0:01:54]} 28. axb3 {[%clk 0:01:37]}  f6 {[%clk 0:01:46]} 29. gxf6+ {[%clk 0:01:33]}  exf6 {[%clk 0:01:45]} 30. f5 {[%clk 0:01:32]}  g5 {[%clk 0:01:36]} 31. Rg4 {[%clk 0:01:31]}  b5 {[%clk 0:01:25]} 32. Kc1 {[%clk 0:01:30]}  Rc5 {[%clk 0:01:21]} 33. Kd2 {[%clk 0:01:29]}  Kh6 {[%clk 0:01:21]} 34. Kd3 {[%clk 0:01:23]}  d5 {[%clk 0:01:21]} 35. c3 {[%clk 0:01:12]}  dxe4+ {[%clk 0:01:20]} 36. Kxe4 {[%clk 0:01:12]}  Re5+ {[%clk 0:01:20]} 37. Kd3 {[%clk 0:01:04]}  Rxf5 {[%clk 0:01:21]} 38. c4 {[%clk 0:01:01]}  a6 {[%clk 0:01:16]} 39. b4 {[%clk 0:01:00]}  bxc4+ {[%clk 0:01:15]} 40. Rxc4 {[%clk 0:00:59]}  Kh5 {[%clk 0:01:01]} 41. Rc6 {[%clk 0:00:58]}  g4 {[%clk 0:00:54]} 42. Rxa6 {[%clk 0:00:56]}  g3 {[%clk 0:00:51]} 43. Ke4 {[%clk 0:00:54]}  Rf1 {[%clk 0:00:44]} 44. Ra8 {[%clk 0:00:50]}  g2 {[%clk 0:00:39]} 45. Rh8+ {[%clk 0:00:47]}  Kg4 {[%clk 0:00:40]} 46. Rg8+ {[%clk 0:00:47]}  Kh3 {[%clk 0:00:40]} 47. Rh8+ {[%clk 0:00:47]}  Kg3 {[%clk 0:00:40]} 48. Rg8+ {[%clk 0:00:47]}  Kf2 {[%clk 0:00:41]} 49. Rg6 {[%clk 0:00:44]}  g1=Q {[%clk 0:00:39]} 50. Rxf6+ {[%clk 0:00:44]}  Ke2 {[%clk 0:00:39]} 51. Rxf1 {[%clk 0:00:43]}  Qxf1 {[%clk 0:00:40]} 52. Kd5 {[%clk 0:00:43]}  Kd3 {[%clk 0:00:39]} 53. b5 {[%clk 0:00:42]}  Qf5+ {[%clk 0:00:34]} 54. Kc6 {[%clk 0:00:42]}  Kc4 {[%clk 0:00:34]} 55. b6 {[%clk 0:00:41]}  Qe6+ {[%clk 0:00:33]} 56. Kc7 {[%clk 0:00:39]}  Qe7+ {[%clk 0:00:33]} 57. Kc8 {[%clk 0:00:33]}  Kb5 {[%clk 0:00:25]} 58. b7 {[%clk 0:00:33]}  Kc6 {[%clk 0:00:25]} 59. b8=Q {[%clk 0:00:31]}  Qd7# {[%clk 0:00:25]} 0-1

[Event "January 2 Late 2024"]
[Site "https://www.chess.com"]
[Date "2024.01.02"]
[Round "8"]
[White "Nakamura, Hikaru"]
[Black "Caruana, Fabiano"]
[Result "1/2-1/2"]
[Board "1"]
[TimeControl "180+1"]
[WhiteFideId "2016192"]
[BlackFideId "2020009"]
[WhiteElo "3285"]
[BlackElo "3060"]
[WhiteTeam "USA"]
[BlackTeam "USA"]
[WhiteClock "0:00:03"]
[BlackClock "0:00:05"]

1. e4 {[%clk 0:03:00]}  c5 {[%clk 0:02:58]} 2. Nf3 {[%clk 0:02:55]}  d6 {[%clk 0:02:58]} 3. d4 {[%clk 0:02:50]}  cxd4 {[%clk 0:02:58]} 4. Qxd4 {[%clk 0:02:51]}  Nf6 {[%clk 0:02:56]} 5. c4 {[%clk 0:02:41]}  Nc6 {[%clk 0:02:55]} 6. Qe3 {[%clk 0:02:41]}  g6 {[%clk 0:02:55]} 7. Be2 {[%clk 0:02:40]}  Bg7 {[%clk 0:02:56]} 8. Nc3 {[%clk 0:02:40]}  O-O {[%clk 0:02:56]} 9. O-O {[%clk 0:02:40]}  Bg4 {[%clk 0:02:56]} 10. Rd1 {[%clk 0:02:38]}  Nd7 {[%clk 0:02:52]} 11. Nd5 {[%clk 0:02:31]}  e6 {[%clk 0:02:39]} 12. Nc3 {[%clk 0:02:19]}  Qe7 {[%clk 0:02:39]} 13. b3 {[%clk 0:02:14]}  Rfd8 {[%clk 0:02:33]} 14. Bb2 {[%clk 0:02:14]}  a6 {[%clk 0:02:17]} 15. Rd2 {[%clk 0:02:06]}  h5 {[%clk 0:01:52]} 16. Rad1 {[%clk 0:02:00]}  Bxf3 {[%clk 0:01:40]} 17. Bxf3 {[%clk 0:01:54]}  Nc5 {[%clk 0:01:21]} 18. Be2 {[%clk 0:01:33]}  Rd7 {[%clk 0:01:15]} 19. Nb1 {[%clk 0:01:28]}  Bxb2 {[%clk 0:01:11]} 20. Rxb2 {[%clk 0:01:28]}  e5 {[%clk 0:01:10]} 21. Nc3 {[%clk 0:01:26]}  Qd8 {[%clk 0:01:06]} 22. Nd5 {[%clk 0:01:21]}  Kg7 {[%clk 0:01:03]} 23. b4 {[%clk 0:01:14]}  Ne6 {[%clk 0:01:01]} 24. Nb6 {[%clk 0:01:15]}  Ncd4 {[%clk 0:01:00]} 25. Nxa8 {[%clk 0:01:13]}  Qxa8 {[%clk 0:01:01]} 26. Bf1 {[%clk 0:01:13]}  a5 {[%clk 0:00:56]} 27. a3 {[%clk 0:01:12]}  b6 {[%clk 0:00:53]} 28. b5 {[%clk 0:00:58]}  Rc7 {[%clk 0:00:48]} 29. h4 {[%clk 0:00:54]}  Qd8 {[%clk 0:00:45]} 30. g3 {[%clk 0:00:53]}  Qf6 {[%clk 0:00:45]} 31. Kg2 {[%clk 0:00:43]}  Rc5 {[%clk 0:00:41]} 32. Rbd2 {[%clk 0:00:43]}  Rc8 {[%clk 0:00:39]} 33. Kh1 {[%clk 0:00:40]}  Rh8 {[%clk 0:00:33]} 34. Bh3 {[%clk 0:00:37]}  Nc5 {[%clk 0:00:29]} 35. f4 {[%clk 0:00:30]}  Re8 {[%clk 0:00:26]} 36. Rxd4 {[%clk 0:00:21]}  exd4 {[%clk 0:00:26]} 37. Rxd4 {[%clk 0:00:22]}  Kf8 {[%clk 0:00:22]} 38. Bg2 {[%clk 0:00:22]}  Rd8 {[%clk 0:00:21]} 39. Kh2 {[%clk 0:00:20]}  Qe6 {[%clk 0:00:15]} 40. Qc3 {[%clk 0:00:14]}  Qf6 {[%clk 0:00:12]} 41. Qe3 {[%clk 0:00:12]}  Qe6 {[%clk 0:00:12]} 42. Rd5 {[%clk 0:00:12]}  Re8 {[%clk 0:00:11]} 43. e5 {[%clk 0:00:12]}  dxe5 {[%clk 0:00:07]} 44. Rxe5 {[%clk 0:00:13]}  Qc8 {[%clk 0:00:07]} 45. Bd5 {[%clk 0:00:13]}  Rxe5 {[%clk 0:00:05]} 46. Qxe5 {[%clk 0:00:12]}  Qg4 {[%clk 0:00:06]} 47. Qb8+ {[%clk 0:00:05]}  Kg7 {[%clk 0:00:06]} 48. Qxb6 {[%clk 0:00:06]}  Qe2+ {[%clk 0:00:05]} 49. Bg2 {[%clk 0:00:06]}  Nd3 {[%clk 0:00:05]} 50. Qd4+ {[%clk 0:00:07]}  Kg8 {[%clk 0:00:04]} 51. Qe4 {[%clk 0:00:07]}  Qd2 {[%clk 0:00:04]} 52. b6 {[%clk 0:00:07]}  Nf2 {[%clk 0:00:05]} 53. b7 {[%clk 0:00:03]}  Nxe4 {[%clk 0:00:04]} 54. b8=Q+ {[%clk 0:00:04]}  Kh7 {[%clk 0:00:04]} 55. Qb7 {[%clk 0:00:03]}  Nf2 {[%clk 0:00:04]} 56. Qxf7+ {[%clk 0:00:04]}  Kh6 {[%clk 0:00:04]} 57. Qf8+ {[%clk 0:00:04]}  Kh7 {[%clk 0:00:05]} 58. Qe7+ {[%clk 0:00:05]}  Kh6 {[%clk 0:00:04]} 59. Qg5+ {[%clk 0:00:05]}  Kh7 {[%clk 0:00:05]} 60. Qe7+ {[%clk 0:00:04]}  Kh6 {[%clk 0:00:04]} 61. Qg5+ {[%clk 0:00:03]}  Kh7 {[%clk 0:00:05]} 62. Qe7+ {[%clk 0:00:03]} 1/2-1/2

[Event "January 2 Late 2024"]
[Site "https://www.chess.com"]
[Date "2024.01.02"]
[Round "8"]
[White "Paravyan, David"]
[Black "Bortnyk, Olexandr"]
[Result "1/2-1/2"]
[Board "3"]
[TimeControl "180+1"]
[WhiteFideId "4194985"]
[BlackFideId "14120828"]
[WhiteElo "3112"]
[BlackElo "3017"]
[WhiteTeam "FID"]
[BlackTeam "UKR"]
[WhiteClock "0:00:06"]
[BlackClock "0:00:02"]

1. e4 {[%clk 0:03:00]}  Nf6 {[%clk 0:02:59]} 2. e5 {[%clk 0:03:00]}  Nd5 {[%clk 0:03:00]} 3. d4 {[%clk 0:02:58]}  d6 {[%clk 0:03:00]} 4. c4 {[%clk 0:02:51]}  Nb6 {[%clk 0:03:00]} 5. exd6 {[%clk 0:02:50]}  exd6 {[%clk 0:03:01]} 6. h3 {[%clk 0:02:44]}  Be7 {[%clk 0:03:01]} 7. Nf3 {[%clk 0:02:45]}  O-O {[%clk 0:03:02]} 8. Bd3 {[%clk 0:02:45]}  Nc6 {[%clk 0:03:02]} 9. O-O {[%clk 0:02:44]}  Nb4 {[%clk 0:03:02]} 10. b3 {[%clk 0:02:36]}  Bf6 {[%clk 0:03:01]} 11. Nc3 {[%clk 0:02:34]}  Nxd3 {[%clk 0:03:00]} 12. Qxd3 {[%clk 0:02:35]}  Re8 {[%clk 0:02:57]} 13. Bf4 {[%clk 0:02:33]}  Be6 {[%clk 0:02:50]} 14. Rfe1 {[%clk 0:02:32]}  h6 {[%clk 0:02:47]} 15. a4 {[%clk 0:02:21]}  a6 {[%clk 0:02:40]} 16. a5 {[%clk 0:01:54]}  Nd7 {[%clk 0:02:40]} 17. Ne4 {[%clk 0:01:55]}  Bf5 {[%clk 0:02:37]} 18. Ra2 {[%clk 0:01:19]}  Rxe4 {[%clk 0:02:17]} 19. Rxe4 {[%clk 0:01:20]}  Nf8 {[%clk 0:02:17]} 20. Rae2 {[%clk 0:01:15]}  d5 {[%clk 0:02:12]} 21. cxd5 {[%clk 0:01:11]}  Qxd5 {[%clk 0:02:13]} 22. Bxc7 {[%clk 0:01:05]}  Re8 {[%clk 0:01:46]} 23. Be5 {[%clk 0:00:55]}  Bxe5 {[%clk 0:01:41]} 24. Nxe5 {[%clk 0:00:55]}  f6 {[%clk 0:01:33]} 25. Qc4 {[%clk 0:00:09]}  Bxe4 {[%clk 0:01:29]} 26. Nd3 {[%clk 0:00:02]}  Qxc4 {[%clk 0:01:19]} 27. bxc4 {[%clk 0:00:03]}  Nd7 {[%clk 0:01:09]} 28. Nf4 {[%clk 0:00:01]}  Kf7 {[%clk 0:00:52]} 29. Rb2 {[%clk 0:00:01]}  g5 {[%clk 0:00:49]} 30. Ne2 {[%clk 0:00:01]}  Bd3 {[%clk 0:00:36]} 31. Nc3 {[%clk 0:00:01]}  Bxc4 {[%clk 0:00:36]} 32. Rxb7 {[%clk 0:00:02]}  Re7 {[%clk 0:00:36]} 33. d5 {[%clk 0:00:01]}  Ne5 {[%clk 0:00:21]} 34. Rb6 {[%clk 0:00:02]}  Bd3 {[%clk 0:00:22]} 35. d6 {[%clk 0:00:02]}  Rd7 {[%clk 0:00:22]} 36. Nd5 {[%clk 0:00:02]}  Nc4 {[%clk 0:00:22]} 37. Rxa6 {[%clk 0:00:02]}  Nxd6 {[%clk 0:00:20]} 38. Rb6 {[%clk 0:00:02]}  Nc4 {[%clk 0:00:19]} 39. Rxf6+ {[%clk 0:00:02]}  Kg7 {[%clk 0:00:19]} 40. Nb6 {[%clk 0:00:02]}  Ra7 {[%clk 0:00:14]} 41. Rc6 {[%clk 0:00:01]}  Nxa5 {[%clk 0:00:13]} 42. Rd6 {[%clk 0:00:02]}  Nc4 {[%clk 0:00:12]} 43. Nxc4 {[%clk 0:00:02]}  Bxc4 {[%clk 0:00:13]} 44. Rd4 {[%clk 0:00:02]}  Bb5 {[%clk 0:00:12]} 45. h4 {[%clk 0:00:02]}  Kg6 {[%clk 0:00:07]} 46. Rd6+ {[%clk 0:00:02]}  Kh5 {[%clk 0:00:07]} 47. hxg5 {[%clk 0:00:03]}  hxg5 {[%clk 0:00:08]} 48. f3 {[%clk 0:00:03]}  Be8 {[%clk 0:00:03]} 49. Kh2 {[%clk 0:00:03]}  Bg6 {[%clk 0:00:03]} 50. g4+ {[%clk 0:00:02]}  Kh6 {[%clk 0:00:04]} 51. Kg3 {[%clk 0:00:03]}  Ra3 {[%clk 0:00:04]} 52. Kf2 {[%clk 0:00:03]}  Rb3 {[%clk 0:00:04]} 53. Rd4 {[%clk 0:00:03]}  Rb2+ {[%clk 0:00:04]} 54. Kg3 {[%clk 0:00:04]}  Rb3 {[%clk 0:00:04]} 55. Kf2 {[%clk 0:00:04]}  Ra3 {[%clk 0:00:03]} 56. f4 {[%clk 0:00:04]}  gxf4 {[%clk 0:00:04]} 57. Rxf4 {[%clk 0:00:05]}  Kg5 {[%clk 0:00:05]} 58. Rf3 {[%clk 0:00:05]}  Ra2+ {[%clk 0:00:05]} 59. Kg3 {[%clk 0:00:06]}  Be4 {[%clk 0:00:06]} 60. Rc3 {[%clk 0:00:04]}  Rg2+ {[%clk 0:00:04]} 61. Kh3 {[%clk 0:00:05]}  Kf4 {[%clk 0:00:04]} 62. Rc8 {[%clk 0:00:04]}  Rg1 {[%clk 0:00:03]} 63. Rf8+ {[%clk 0:00:04]}  Ke3 {[%clk 0:00:03]} 64. Kh4 {[%clk 0:00:04]}  Bf3 {[%clk 0:00:04]} 65. Re8+ {[%clk 0:00:03]}  Kf2 {[%clk 0:00:05]} 66. Kg5 {[%clk 0:00:03]}  Rxg4+ {[%clk 0:00:05]} 67. Kf5 {[%clk 0:00:03]}  Ra4 {[%clk 0:00:05]} 68. Rb8 {[%clk 0:00:04]}  Kg3 {[%clk 0:00:05]} 69. Rg8+ {[%clk 0:00:03]}  Bg4+ {[%clk 0:00:06]} 70. Ke5 {[%clk 0:00:04]}  Ra5+ {[%clk 0:00:06]} 71. Ke4 {[%clk 0:00:04]}  Ra1 {[%clk 0:00:06]} 72. Ke5 {[%clk 0:00:04]}  Re1+ {[%clk 0:00:07]} 73. Kd4 {[%clk 0:00:04]}  Kf4 {[%clk 0:00:08]} 74. Rf8+ {[%clk 0:00:04]}  Bf5 {[%clk 0:00:09]} 75. Rh8 {[%clk 0:00:04]}  Rd1+ {[%clk 0:00:09]} 76. Kc5 {[%clk 0:00:04]}  Ke4 {[%clk 0:00:08]} 77. Rh4+ {[%clk 0:00:05]}  Ke5 {[%clk 0:00:08]} 78. Rh5 {[%clk 0:00:05]}  Rc1+ {[%clk 0:00:09]} 79. Kb5 {[%clk 0:00:05]}  Ke4 {[%clk 0:00:06]} 80. Kb6 {[%clk 0:00:06]}  Be6 {[%clk 0:00:06]} 81. Rc5 {[%clk 0:00:06]}  Rd1 {[%clk 0:00:06]} 82. Rh5 {[%clk 0:00:05]}  Kd4 {[%clk 0:00:04]} 83. Kc6 {[%clk 0:00:05]}  Ra1 {[%clk 0:00:04]} 84. Kd6 {[%clk 0:00:03]}  Ra6+ {[%clk 0:00:04]} 85. Ke7 {[%clk 0:00:04]}  Bd5 {[%clk 0:00:04]} 86. Rh2 {[%clk 0:00:04]}  Be4 {[%clk 0:00:03]} 87. Re2 {[%clk 0:00:04]}  Ke5 {[%clk 0:00:03]} 88. Re1 {[%clk 0:00:04]}  Ra7+ {[%clk 0:00:04]} 89. Ke8 {[%clk 0:00:05]}  Kf5 {[%clk 0:00:04]} 90. Kd8 {[%clk 0:00:06]}  Bd5 {[%clk 0:00:04]} 91. Re7 {[%clk 0:00:06]}  Ra6 {[%clk 0:00:04]} 92. Kc7 {[%clk 0:00:06]}  Be6 {[%clk 0:00:04]} 93. Kb7 {[%clk 0:00:06]}  Rd6 {[%clk 0:00:04]} 94. Rh7 {[%clk 0:00:05]}  Ke5 {[%clk 0:00:04]} 95. Kc7 {[%clk 0:00:05]}  Ra6 {[%clk 0:00:04]} 96. Kb7 {[%clk 0:00:04]}  Ra2 {[%clk 0:00:04]} 97. Kc6 {[%clk 0:00:03]}  Bd5+ {[%clk 0:00:03]} 98. Kc5 {[%clk 0:00:03]}  Rc2+ {[%clk 0:00:04]} 99. Kb5 {[%clk 0:00:03]}  Kd4 {[%clk 0:00:04]} 100. Rh4+ {[%clk 0:00:03]}  Be4 {[%clk 0:00:04]} 101. Kb4 {[%clk 0:00:04]}  Rb2+ {[%clk 0:00:05]} 102. Ka4 {[%clk 0:00:04]}  Rb8 {[%clk 0:00:04]} 103. Rg4 {[%clk 0:00:04]}  Kd5 {[%clk 0:00:04]} 104. Ka3 {[%clk 0:00:05]}  Bd3 {[%clk 0:00:04]} 105. Rb4 {[%clk 0:00:05]}  Rc8 {[%clk 0:00:04]} 106. Rh4 {[%clk 0:00:05]}  Rc1 {[%clk 0:00:03]} 107. Kb2 {[%clk 0:00:05]}  Rg1 {[%clk 0:00:02]} 108. Kc3 {[%clk 0:00:05]}  Rg3 {[%clk 0:00:03]} 109. Rd4+ {[%clk 0:00:04]}  Kc5 {[%clk 0:00:02]} 110. Rxd3 {[%clk 0:00:05]}  Rxd3+ {[%clk 0:00:02]} 111. Kxd3 {[%clk 0:00:06]} 1/2-1/2

[Event "January 2 Late 2024"]
[Site "https://www.chess.com"]
[Date "2024.01.02"]
[Round "8"]
[White "Iturrizaga Bonelli, Eduardo"]
[Black "Radjabov, Teimour"]
[Result "0-1"]
[Board "5"]
[TimeControl "180+1"]
[WhiteFideId "3901211"]
[BlackFideId "13400924"]
[WhiteElo "2993"]
[BlackElo "3036"]
[WhiteTeam "ESP"]
[BlackTeam "AZE"]
[WhiteClock "0:00:00"]
[BlackClock "0:00:02"]

1. c4 {[%clk 0:03:00]}  e5 {[%clk 0:02:57]} 2. g3 {[%clk 0:03:00]}  c6 {[%clk 0:02:55]} 3. d4 {[%clk 0:03:00]}  e4 {[%clk 0:02:47]} 4. d5 {[%clk 0:03:00]}  Nf6 {[%clk 0:02:43]} 5. Bg2 {[%clk 0:02:59]}  Bb4+ {[%clk 0:02:39]} 6. Bd2 {[%clk 0:02:59]}  Qe7 {[%clk 0:02:38]} 7. Nc3 {[%clk 0:03:00]}  cxd5 {[%clk 0:01:39]} 8. Nxd5 {[%clk 0:02:55]}  Nxd5 {[%clk 0:01:37]} 9. cxd5 {[%clk 0:02:56]}  O-O {[%clk 0:01:33]} 10. Nh3 {[%clk 0:02:56]}  Bxd2+ {[%clk 0:01:27]} 11. Qxd2 {[%clk 0:02:56]}  d6 {[%clk 0:01:23]} 12. Ng5 {[%clk 0:02:56]}  f5 {[%clk 0:01:10]} 13. h4 {[%clk 0:02:56]}  Na6 {[%clk 0:01:04]} 14. O-O {[%clk 0:02:56]}  Bd7 {[%clk 0:01:02]} 15. Rac1 {[%clk 0:02:56]}  Rfc8 {[%clk 0:00:58]} 16. b4 {[%clk 0:02:35]}  Nc7 {[%clk 0:00:57]} 17. Nh3 {[%clk 0:02:33]}  Qe5 {[%clk 0:00:52]} 18. Nf4 {[%clk 0:02:33]}  Nb5 {[%clk 0:00:50]} 19. Kh2 {[%clk 0:02:13]}  Nc3 {[%clk 0:00:46]} 20. a3 {[%clk 0:01:36]}  Rc4 {[%clk 0:00:42]} 21. e3 {[%clk 0:01:32]}  Rac8 {[%clk 0:00:42]} 22. Rg1 {[%clk 0:01:30]}  g6 {[%clk 0:00:34]} 23. Bh3 {[%clk 0:01:21]}  Nb5 {[%clk 0:00:22]} 24. Rxc4 {[%clk 0:01:11]}  Rxc4 {[%clk 0:00:22]} 25. g4 {[%clk 0:01:11]}  Nxa3 {[%clk 0:00:17]} 26. Qa2 {[%clk 0:00:47]}  Rc3 {[%clk 0:00:17]} 27. gxf5 {[%clk 0:00:46]}  Bxf5 {[%clk 0:00:17]} 28. Rg5 {[%clk 0:00:36]}  h6 {[%clk 0:00:13]} 29. Rg3 {[%clk 0:00:34]}  Qf6 {[%clk 0:00:06]} 30. Bxf5 {[%clk 0:00:24]}  Qxf5 {[%clk 0:00:06]} 31. Qa1 {[%clk 0:00:19]}  Nb5 {[%clk 0:00:06]} 32. Qa5 {[%clk 0:00:16]}  Qd7 {[%clk 0:00:05]} 33. Rxg6+ {[%clk 0:00:16]}  Kh7 {[%clk 0:00:05]} 34. Qa1 {[%clk 0:00:15]}  Qe7 {[%clk 0:00:04]} 35. Kg3 {[%clk 0:00:08]}  Rc8 {[%clk 0:00:02]} 36. h5 {[%clk 0:00:00]}  Nc3 {[%clk 0:00:02]} 0-1

[Event "January 2 Late 2024"]
[Site "https://www.chess.com"]
[Date "2024.01.02"]
[Round "8"]
[White "Bluebaum, Matthias"]
[Black "Salem, A.R. Saleh"]
[Result "1/2-1/2"]
[Board "6"]
[TimeControl "180+1"]
[WhiteFideId "24651516"]
[BlackFideId "9301348"]
[WhiteElo "3029"]
[BlackElo "2982"]
[WhiteTeam "GER"]
[BlackTeam "UAE"]
[WhiteClock "0:00:09"]
[BlackClock "0:00:04"]

1. d4 {[%clk 0:03:00]}  Nf6 {[%clk 0:02:56]} 2. c4 {[%clk 0:03:01]}  g6 {[%clk 0:02:57]} 3. Nc3 {[%clk 0:03:02]}  Bg7 {[%clk 0:02:57]} 4. e4 {[%clk 0:03:02]}  O-O {[%clk 0:02:58]} 5. Nf3 {[%clk 0:03:02]}  d6 {[%clk 0:02:59]} 6. Be2 {[%clk 0:03:03]}  e5 {[%clk 0:02:59]} 7. Be3 {[%clk 0:03:04]}  Qe7 {[%clk 0:02:56]} 8. dxe5 {[%clk 0:02:53]}  dxe5 {[%clk 0:02:56]} 9. Nd5 {[%clk 0:02:54]}  Qd8 {[%clk 0:02:45]} 10. Bg5 {[%clk 0:02:48]}  Nbd7 {[%clk 0:02:42]} 11. O-O {[%clk 0:02:39]}  h6 {[%clk 0:02:36]} 12. Bh4 {[%clk 0:02:13]}  g5 {[%clk 0:02:19]} 13. Nxf6+ {[%clk 0:02:14]}  Nxf6 {[%clk 0:02:17]} 14. Bg3 {[%clk 0:02:14]}  Qe7 {[%clk 0:01:55]} 15. Qc2 {[%clk 0:02:03]}  Nd7 {[%clk 0:01:39]} 16. Rad1 {[%clk 0:01:52]}  Re8 {[%clk 0:01:38]} 17. h3 {[%clk 0:01:46]}  a5 {[%clk 0:01:36]} 18. Nh2 {[%clk 0:01:34]}  Nf8 {[%clk 0:01:22]} 19. Bg4 {[%clk 0:01:30]}  Ne6 {[%clk 0:01:20]} 20. Bxe6 {[%clk 0:01:30]}  Bxe6 {[%clk 0:01:20]} 21. Ng4 {[%clk 0:01:31]}  Qc5 {[%clk 0:01:08]} 22. Ne3 {[%clk 0:01:27]}  c6 {[%clk 0:01:01]} 23. Rd3 {[%clk 0:01:11]}  Red8 {[%clk 0:01:00]} 24. Rfd1 {[%clk 0:01:11]}  Rd4 {[%clk 0:01:00]} 25. b3 {[%clk 0:00:58]}  Rad8 {[%clk 0:00:59]} 26. Kh2 {[%clk 0:00:47]}  h5 {[%clk 0:00:58]} 27. f3 {[%clk 0:00:46]}  b5 {[%clk 0:00:50]} 28. Bf2 {[%clk 0:00:45]}  Qd6 {[%clk 0:00:50]} 29. Rxd4 {[%clk 0:00:24]}  exd4+ {[%clk 0:00:50]} 30. Kh1 {[%clk 0:00:24]}  Qc5 {[%clk 0:00:41]} 31. Nf5 {[%clk 0:00:24]}  Bxf5 {[%clk 0:00:35]} 32. exf5 {[%clk 0:00:25]}  Bf6 {[%clk 0:00:30]} 33. Qd3 {[%clk 0:00:22]}  h4 {[%clk 0:00:29]} 34. Re1 {[%clk 0:00:22]}  a4 {[%clk 0:00:28]} 35. cxb5 {[%clk 0:00:20]}  cxb5 {[%clk 0:00:27]} 36. bxa4 {[%clk 0:00:20]}  bxa4 {[%clk 0:00:20]} 37. Rd1 {[%clk 0:00:20]}  Qd5 {[%clk 0:00:17]} 38. Rd2 {[%clk 0:00:17]}  Qe5 {[%clk 0:00:15]} 39. Re2 {[%clk 0:00:15]}  Qc5 {[%clk 0:00:14]} 40. Rc2 {[%clk 0:00:15]}  Qd5 {[%clk 0:00:15]} 41. Rd2 {[%clk 0:00:10]}  Kg7 {[%clk 0:00:14]} 42. Rc2 {[%clk 0:00:09]}  Re8 {[%clk 0:00:14]} 43. Rd2 {[%clk 0:00:09]}  Rd8 {[%clk 0:00:11]} 44. Rc2 {[%clk 0:00:10]}  Rd7 {[%clk 0:00:12]} 45. Rd2 {[%clk 0:00:09]}  Qc5 {[%clk 0:00:09]} 46. Rc2 {[%clk 0:00:09]}  Qd6 {[%clk 0:00:09]} 47. Rd2 {[%clk 0:00:10]}  Qf4 {[%clk 0:00:10]} 48. Rd1 {[%clk 0:00:08]}  Be5 {[%clk 0:00:08]} 49. Kg1 {[%clk 0:00:06]}  Re7 {[%clk 0:00:05]} 50. Kf1 {[%clk 0:00:05]}  Rd7 {[%clk 0:00:04]} 51. Qe4 {[%clk 0:00:05]}  Kf6 {[%clk 0:00:03]} 52. Qxf4 {[%clk 0:00:04]}  gxf4 {[%clk 0:00:01]} 53. Bxh4+ {[%clk 0:00:04]}  Kxf5 {[%clk 0:00:02]} 54. Ke2 {[%clk 0:00:05]}  Rb7 {[%clk 0:00:02]} 55. Kd3 {[%clk 0:00:05]}  Rb2 {[%clk 0:00:02]} 56. Rd2 {[%clk 0:00:06]}  Rb1 {[%clk 0:00:02]} 57. Bf2 {[%clk 0:00:07]}  a3 {[%clk 0:00:01]} 58. Bxd4 {[%clk 0:00:07]}  Bxd4 {[%clk 0:00:02]} 59. Kxd4 {[%clk 0:00:07]}  Ra1 {[%clk 0:00:02]} 60. Kc3 {[%clk 0:00:08]}  Rb1 {[%clk 0:00:02]} 61. Kc4 {[%clk 0:00:06]}  Kg5 {[%clk 0:00:03]} 62. Rd5+ {[%clk 0:00:04]}  Kh4 {[%clk 0:00:03]} 63. Ra5 {[%clk 0:00:05]}  Rb2 {[%clk 0:00:02]} 64. Rxa3 {[%clk 0:00:05]}  Rxg2 {[%clk 0:00:03]} 65. Kd4 {[%clk 0:00:05]}  Kxh3 {[%clk 0:00:02]} 66. Ra7 {[%clk 0:00:05]}  Kg3 {[%clk 0:00:01]} 67. a4 {[%clk 0:00:05]}  Kxf3 {[%clk 0:00:01]} 68. Rxf7 {[%clk 0:00:05]}  Re2 {[%clk 0:00:01]} 69. Kc5 {[%clk 0:00:05]}  Rc2+ {[%clk 0:00:01]} 70. Kb5 {[%clk 0:00:06]}  Ke3 {[%clk 0:00:02]} 71. a5 {[%clk 0:00:05]}  Rb2+ {[%clk 0:00:02]} 72. Kc6 {[%clk 0:00:05]}  Ra2 {[%clk 0:00:03]} 73. Kb6 {[%clk 0:00:06]}  f3 {[%clk 0:00:03]} 74. a6 {[%clk 0:00:06]}  f2 {[%clk 0:00:03]} 75. a7 {[%clk 0:00:07]}  Ke2 {[%clk 0:00:03]} 76. Rxf2+ {[%clk 0:00:07]}  Kxf2 {[%clk 0:00:04]} 77. Kb7 {[%clk 0:00:08]}  Ke3 {[%clk 0:00:04]} 78. a8=Q {[%clk 0:00:08]}  Rxa8 {[%clk 0:00:04]} 79. Kxa8 {[%clk 0:00:09]} 1/2-1/2